fUST/lending_fUST_20240814
["ID","MTS","AMOUNT","RATE_DAILY","PERIOD"]
[334875298,1723623047287,-395.45249404,0.00013698,2]
[334875299,1723623047296,-509.37128122,0.00013698,2]
[334875300,1723623047305,-500.0,0.00013698,2]
[334875301,1723623047314,-545.33902437,0.00013698,2]
[334875302,1723623047326,-500.0,0.00013698,2]
[334875303,1723623047337,-500.0,0.00013698,2]
[334875304,1723623047349,-500.0,0.00013698,2]
[334875305,1723623047362,-500.0,0.00013698,2]
[334875306,1723623047373,-500.0,0.00013698,2]
[334875307,1723623047381,-500.0,0.00013698,2]
[334875308,1723623047391,-500.0,0.00013698,2]
[334875309,1723623047400,-517.56000118,0.00013698,2]
[334875310,1723623047409,-500.0,0.00013698,2]
[334875311,1723623047419,-500.0,0.00013698,2]
[334875312,1723623047429,-201.75317374,0.00013698,2]
[334875313,1723623047440,-500.0,0.00013698,2]
[334875314,1723623047452,-500.0,0.00013698,2]
[334875315,1723623047461,-507.61307672,0.00013698,2]
[334875316,1723623047471,-500.0,0.00013698,2]
[334875317,1723623047481,-500.0,0.00013698,2]
[334875318,1723623047491,-500.0,0.00013698,2]
[334875319,1723623047500,-500.0,0.00013698,2]
[334875320,1723623047511,-500.0,0.00013698,2]
[334875321,1723623047522,-500.0,0.00013698,2]
[334875322,1723623047533,-500.0,0.00013698,2]
[334875323,1723623047544,-500.0,0.00013698,2]
[334875324,1723623047555,-500.0,0.00013698,2]
[334875325,1723623047567,-500.0,0.00013698,2]
[334875326,1723623047577,-504.37159975,0.00013698,2]
[334875327,1723623047589,-500.0,0.00013698,2]
[334875328,1723623047599,-500.0,0.00013698,2]
[334875329,1723623047627,-387.55479876,0.00013698,2]
[334875330,1723623047639,-500.0,0.00013698,2]
[334875331,1723623047649,-500.0,0.00013698,2]
[334875332,1723623047659,-754.12,0.00013698,2]
[334875333,1723623047671,-500.0,0.00013698,2]
[334875334,1723623047682,-500.0,0.00013698,2]
[334875335,1723623047693,-500.0,0.00013698,2]
[334875336,1723623047703,-500.0,0.00013698,2]
[334875337,1723623047713,-500.0,0.00013698,2]
[334875338,1723623047725,-500.0,0.00013698,2]
[334875339,1723623047736,-500.0,0.00013698,2]
[334875340,1723623047748,-500.0,0.00013698,2]
[334875341,1723623047759,-500.0,0.00013698,2]
[334875342,1723623047770,-546.27050067,0.00013698,2]
[334875343,1723623047781,-500.0,0.00013698,2]
[334875344,1723623047792,-500.0,0.00013698,2]
[334875345,1723623047802,-500.0,0.00013698,2]
[334875346,1723623047811,-636.73,0.00013698,2]
[334875347,1723623047821,-500.0,0.00013698,2]
[334875348,1723623047830,-500.0,0.00013698,2]
[334875349,1723623047840,-500.0,0.00013698,2]
[334875350,1723623047850,-507.15897505,0.00013698,2]
[334875351,1723623047859,-500.0,0.00013698,2]
[334875352,1723623047869,-500.0,0.00013698,2]
[334875353,1723623047879,-433.69131351,0.00013698,2]
[334875354,1723623047890,-500.0,0.00013698,2]
[334875355,1723623047899,-500.0,0.00013698,2]
[334875356,1723623047909,-500.0,0.00013698,2]
[334875357,1723623047918,-521.93036736,0.00013698,2]
[334875358,1723623047929,-506.30929117,0.00013698,2]
[334875359,1723623047939,-172.99687062,0.00013698,2]
[334875360,1723623047949,-500.0,0.00013698,2]
[334875361,1723623047959,-118.5274505,0.00013698,2]
[334875362,1723623048147,-381.4725495,0.00013698,2]
[334875363,1723623048157,-500.0,0.00013698,2]
[334875364,1723623048167,-500.0,0.00013698,2]
[334875365,1723623048177,-500.0,0.00013698,2]
[334875366,1723623048187,-500.0,0.00013698,2]
[334875367,1723623048199,-500.0,0.00013698,2]
[334875368,1723623048209,-500.0,0.00013698,2]
[334875369,1723623048219,-509.48,0.00013698,2]
[334875370,1723623048229,-500.0,0.00013698,2]
[334875371,1723623048241,-500.0,0.00013698,2]
[334875372,1723623048251,-500.0,0.00013698,2]
[334875373,1723623048261,-500.0,0.00013698,2]
[334875374,1723623048273,-543.98,0.00013698,2]
[334875375,1723623048283,-507.87533014,0.00013698,2]
[334875376,1723623048294,-500.0,0.00013698,2]
[334875377,1723623048304,-507.94572982,0.00013698,2]
[334875378,1723623048315,-500.0,0.00013698,2]
[334875379,1723623048326,-505.60395421,0.00013698,2]
[334875380,1723623048336,-512.61268152,0.00013698,2]
[334875381,1723623048347,-503.24687132,0.00013698,2]
[334875382,1723623048359,-500.0,0.00013698,2]
[334875383,1723623048369,-500.0,0.00013698,2]
[334875384,1723623048380,-500.0,0.00013698,2]
[334875385,1723623048392,-500.0,0.00013698,2]
[334875386,1723623048402,-500.0,0.00013698,2]
[334875387,1723623048412,-500.0,0.00013698,2]
[334875388,1723623048424,-506.88245126,0.00013698,2]
[334875389,1723623048435,-500.0,0.00013698,2]
[334875390,1723623048445,-500.0,0.00013698,2]
[334875391,1723623048455,-500.0,0.00013698,2]
[334875392,1723623048466,-499.877837,0.00013698,2]
[334875393,1723623048475,-502.28419089,0.00013698,2]
[334875394,1723623048486,-500.0,0.00013698,2]
[334875395,1723623048495,-501.66080826,0.00013698,2]
[334875396,1723623048505,-500.0,0.00013698,2]
[334875397,1723623048516,-608.02185901,0.00013698,2]
[334875398,1723623048526,-500.0,0.00013698,2]
[334875399,1723623048537,-1358.27,0.00013698,2]
[334875400,1723623048546,-1358.27,0.00013698,2]
[334875401,1723623048556,-1358.27,0.00013698,2]
[334875402,1723623048566,-1358.27,0.00013698,2]
[334875403,1723623048575,-500.86692288,0.00013698,2]
[334875404,1723623048586,-1358.27,0.00013698,2]
[334875405,1723623048595,-1358.27,0.00013698,2]
[334875406,1723623048606,-1358.27,0.00013698,2]
[334875407,1723623048615,-1358.27,0.00013698,2]
[334875408,1723623048625,-1358.27,0.00013698,2]
[334875409,1723623048635,-500.0,0.00013698,2]
[334875410,1723623048646,-1358.27,0.00013698,2]
[334875411,1723623048655,-571.05025296,0.00013698,2]
[334875412,1723623048665,-1358.27,0.00013698,2]
[334875413,1723623048675,-508.81862879,0.00013698,2]
[334875414,1723623048684,-1358.27,0.00013698,2]
[334875415,1723623048694,-1358.27,0.00013698,2]
[334875416,1723623048736,-1358.27,0.00013698,2]
[334875417,1723623048746,-1358.27,0.00013698,2]
[334875418,1723623048756,-1358.27,0.00013698,2]
[334875419,1723623048765,-1358.27,0.00013698,2]
[334875420,1723623048775,-1358.27,0.00013698,2]
[334875421,1723623048784,-1358.27,0.00013698,2]
[334875422,1723623048793,-1358.27,0.00013698,2]
[334875423,1723623048802,-500.0,0.00013698,2]
[334875424,1723623048811,-1358.27,0.00013698,2]
[334875425,1723623048820,-1358.27,0.00013698,2]
[334875426,1723623048829,-1358.27,0.00013698,2]
[334875427,1723623048838,-508.10070683,0.00013698,2]
[334875428,1723623048847,-1358.29954984,0.00013698,2]
[334875429,1723623048857,-500.0,0.00013698,2]
[334875430,1723623048867,-503.27648931,0.00013698,2]
[334875431,1723623048878,-500.0,0.00013698,2]
[334875432,1723623048887,-504.76669903,0.00013698,2]
[334875433,1723623048897,-500.0,0.00013698,2]
[334875434,1723623048906,-502.41954038,0.00013698,2]
[334875435,1723623048916,-500.0,0.00013698,2]
[334875436,1723623048924,-500.0,0.00013698,2]
[334875437,1723623048937,-500.0,0.00013698,2]
[334875438,1723623048946,-408.18528077,0.00013698,2]
[334875439,1723623048956,-995.49,0.00013698,2]
[334875440,1723623048965,-995.49,0.00013698,2]
[334875441,1723623048975,-500.0,0.00013698,2]
[334875442,1723623048984,-995.49,0.00013698,2]
[334875443,1723623048995,-995.49,0.00013698,2]
[334875444,1723623049005,-995.49,0.00013698,2]
[334875445,1723623049014,-995.49,0.00013698,2]
[334875446,1723623049024,-995.49,0.00013698,2]
[334875447,1723623049034,-995.49,0.00013698,2]
[334875448,1723623049043,-995.49,0.00013698,2]
[334875449,1723623049053,-995.49,0.00013698,2]
[334875450,1723623049065,-995.49,0.00013698,2]
[334875451,1723623049075,-995.49,0.00013698,2]
[334875452,1723623049086,-407.11467537,0.00013698,2]
[334875453,1723623049115,-588.37532463,0.00013698,2]
[334875454,1723623049125,-230.37976291,0.00013698,2]
[334875455,1723623049312,-184.054335,0.000136,2]
[334875456,1723623049323,-184.054335,0.000136,2]
[334875457,1723623049334,-184.054335,0.00013609,2]
[334875458,1723623049343,-165.57991591,0.00013615,2]
[334875459,1723623049357,-296.70834409,0.00013615,2]
[334875460,1723623049368,-462.28826,0.00013624,2]
[334875461,1723623049378,-462.28826,0.00013628,2]
[334875462,1723623049389,-462.28826,0.00013632,2]
[334875463,1723623049399,-269.62023709,0.00013698,2]
[334875464,1723623049409,-995.49,0.00013698,2]
[334875465,1723623049420,-995.49,0.00013698,2]
[334875466,1723623049430,-995.49,0.00013698,2]
[334875467,1723623049440,-995.49,0.00013698,2]
[334875468,1723623049450,-1766.94,0.00013698,2]
[334875469,1723623049460,-995.49,0.00013698,2]
[334875470,1723623049470,-995.49,0.00013698,2]
[334875471,1723623049479,-500.0,0.00013698,2]
[334875472,1723623049489,-995.49,0.00013698,2]
[334875473,1723623049499,-995.49,0.00013698,2]
[334875474,1723623049509,-995.49,0.00013698,2]
[334875475,1723623049519,-995.49,0.00013698,2]
[334875476,1723623049531,-995.50760141,0.00013698,2]
[334875477,1723623049541,-500.0,0.00013698,2]
[334875478,1723623049551,-500.0,0.00013698,2]
[334875479,1723623049561,-500.0,0.00013698,2]
[334875480,1723623049572,-500.0,0.00013698,2]
[334875481,1723623049583,-502.94235528,0.00013698,2]
[334875482,1723623049593,-336.93026284,0.00013698,2]
[334875483,1723623049603,-500.0,0.00013698,2]
[334875484,1723623049613,-500.0,0.00013698,2]
[334875485,1723623049624,-503.99625575,0.00013698,2]
[334875486,1723623049636,-500.0,0.00013698,2]
[334875487,1723623049646,-500.0,0.00013698,2]
[334875488,1723623049656,-500.0,0.00013698,2]
[334875489,1723623049667,-500.0,0.00013698,2]
[334875490,1723623049678,-507.35037391,0.00013698,2]
[334875491,1723623049687,-500.0,0.00013698,2]
[334875492,1723623049697,-500.0,0.00013698,2]
[334875493,1723623049706,-500.0,0.00013698,2]
[334875494,1723623049716,-500.0,0.00013698,2]
[334875495,1723623049725,-503.15134027,0.00013698,2]
[334875496,1723623049734,-500.0,0.00013698,2]
[334875497,1723623049745,-209.39473625,0.00013698,2]
[334875498,1723623049754,-500.0,0.00013698,2]
[334875499,1723623049764,-511.07,0.00013698,2]
[334875500,1723623049773,-503.69960504,0.00013698,2]
[334875501,1723623049783,-500.0,0.00013698,2]
[334875502,1723623049793,-500.0,0.00013698,2]
[334875503,1723623049802,-500.0,0.00013698,2]
[334875504,1723623049812,-508.99352605,0.00013698,2]
[334875505,1723623049822,-509.19586395,0.00013698,2]
[334875506,1723623049832,-500.0,0.00013698,2]
[334875507,1723623049841,-526.91612342,0.00013698,2]
[334875508,1723623049852,-500.0,0.00013698,2]
[334875509,1723623049861,-500.0,0.00013698,2]
[334875510,1723623049872,-500.0,0.00013698,2]
[334875511,1723623049882,-500.0,0.00013698,2]
[334875512,1723623049892,-500.0,0.00013698,2]
[334875513,1723623049901,-500.0,0.00013698,2]
[334875514,1723623049911,-500.0,0.00013698,2]
[334875515,1723623049920,-501.26350329,0.00013698,2]
[334875516,1723623049930,-500.0,0.00013698,2]
[334875517,1723623049940,-500.0,0.00013698,2]
[334875518,1723623049950,-521.57515333,0.00013698,2]
[334875519,1723623049959,-500.0,0.00013698,2]
[334875520,1723623049969,-500.0,0.00013698,2]
[334875521,1723623049979,-500.0,0.00013698,2]
[334875522,1723623049990,-500.0,0.00013698,2]
[334875523,1723623050000,-500.0,0.00013698,2]
[334875524,1723623050011,-779.36,0.00013698,2]
[334875525,1723623050022,-502.65415383,0.00013698,2]
[334875526,1723623050032,-511.13273797,0.00013698,2]
[334875527,1723623050042,-501.27969078,0.00013698,2]
[334875528,1723623050053,-500.0,0.00013698,2]
[334875529,1723623050063,-500.0,0.00013698,2]
[334875530,1723623050074,-500.0,0.00013698,2]
[334875531,1723623050084,-641.49497964,0.00013698,2]
[334875532,1723623050094,-500.0,0.00013698,2]
[334875533,1723623050105,-500.0,0.00013698,2]
[334875534,1723623050115,-506.90681442,0.00013698,2]
[334875535,1723623050125,-500.0,0.00013698,2]
[334875536,1723623050135,-500.0,0.00013698,2]
[334875537,1723623050146,-429.67280495,0.00013698,2]
[334875538,1723623050157,-501.30289427,0.00013698,2]
[334875539,1723623050166,-508.89849981,0.00013698,2]
[334875540,1723623050175,-500.0,0.00013698,2]
[334875541,1723623050187,-500.0,0.00013698,2]
[334875542,1723623050197,-751.82,0.00013698,2]
[334875543,1723623050208,-500.0,0.00013698,2]
[334875544,1723623050219,-500.0,0.00013698,2]
[334875545,1723623050229,-503.96464889,0.00013698,2]
[334875546,1723623050239,-500.0,0.00013698,2]
[334875547,1723623050252,-501.26995839,0.00013698,2]
[334875548,1723623050262,-500.0,0.00013698,2]
[334875549,1723623050274,-503.12999919,0.00013698,2]
[334875550,1723623050286,-500.0,0.00013698,2]
[334875551,1723623050296,-500.0,0.00013698,2]
[334875552,1723623050306,-441.82593137,0.00013698,2]
[334875553,1723623050316,-179.43919407,0.00013698,2]
[334875554,1723623050325,-509.69753244,0.00013698,2]
[334875555,1723623050334,-506.7688893,0.00013698,2]
[334875556,1723623050343,-500.0,0.00013698,2]
[334875557,1723623050355,-500.0,0.00013698,2]
[334875558,1723623050364,-500.0,0.00013698,2]
[334875559,1723623050374,-504.52688739,0.00013698,2]
[334875560,1723623050383,-500.0,0.00013698,2]
[334875561,1723623050393,-600.0,0.00013698,2]
[334875562,1723623050402,-508.78,0.00013698,2]
[334875563,1723623050412,-500.0,0.00013698,2]
[334875564,1723623050421,-500.0,0.00013698,2]
[334875565,1723623050432,-500.0,0.00013698,2]
[334875566,1723623050443,-488.63434065,0.00013698,2]
[334875567,1723623050469,-462.28826,0.0001358,2]
[334875568,1723623050479,-11.36565935,0.00013698,2]
[334875569,1723623050489,-502.95229743,0.00013698,2]
[334875570,1723623050500,-511.61694286,0.00013698,2]
[334875571,1723623050512,-502.61773388,0.00013698,2]
[334875572,1723623050524,-1279.0,0.00013698,2]
[334875573,1723623050535,-503.12619183,0.00013698,2]
[334875574,1723623050546,-500.0,0.00013698,2]
[334875575,1723623050559,-500.0,0.00013698,2]
[334875576,1723623050570,-500.0,0.00013698,2]
[334875577,1723623050583,-500.0,0.00013698,2]
[334875578,1723623050593,-335.63291465,0.00013698,2]
[334875579,1723623050752,-8.78199054,0.00013587,2]
[334875580,1723623050935,-1500.0,0.00013122,2]
[334875581,1723623050944,-143.15842058,0.00013587,2]
[334875582,1723623050958,-310.34784888,0.00013587,2]
[334875583,1723623050969,-462.28826,0.00013589,2]
[334875584,1723623050978,-462.28826,0.000136,2]
[334875585,1723623050988,-462.28826,0.000136,2]
[334875586,1723623050997,-462.28826,0.00013609,2]
[334875587,1723623051007,-184.054335,0.00013615,2]
[334875588,1723623051016,-462.28826,0.00013615,2]
[334875589,1723623051026,-184.054335,0.00013621,2]
[334875590,1723623051035,-462.28826,0.00013624,2]
[334875591,1723623051046,-184.054335,0.00013627,2]
[334875592,1723623051057,-462.28826,0.00013628,2]
[334875593,1723623051068,-184.054335,0.0001363,2]
[334875594,1723623051077,-462.288268,0.00013632,2]
[334875595,1723623051088,-164.36708535,0.00013698,2]
[334875596,1723623051098,-500.0,0.00013698,2]
[334875597,1723623051109,-1158.6,0.00013698,2]
[334875598,1723623051119,-500.0,0.00013698,2]
[334875599,1723623051131,-500.0,0.00013698,2]
[334875600,1723623051142,-500.0,0.00013698,2]
[334875601,1723623051153,-500.0,0.00013698,2]
[334875602,1723623051164,-503.42286626,0.00013698,2]
[334875603,1723623051174,-500.0,0.00013698,2]
[334875604,1723623051184,-500.0,0.00013698,2]
[334875605,1723623051195,-500.0,0.00013698,2]
[334875606,1723623051206,-506.15791723,0.00013698,2]
[334875607,1723623051217,-500.0,0.00013698,2]
[334875608,1723623051228,-500.0,0.00013698,2]
[334875609,1723623051238,-252.8978687,0.00013698,2]
[334875610,1723623051252,-500.0,0.00013698,2]
[334875611,1723623051263,-500.0,0.00013698,2]
[334875612,1723623051275,-501.82720594,0.00013698,2]
[334875613,1723623051286,-502.10366178,0.00013698,2]
[334875614,1723623051298,-500.0,0.00013698,2]
[334875615,1723623051309,-500.0,0.00013698,2]
[334875616,1723623051321,-500.0,0.00013698,2]
[334875617,1723623051332,-513.5104434,0.00013698,2]
[334875618,1723623051343,-500.0,0.00013698,2]
[334875619,1723623051354,-580.34,0.00013698,2]
[334875620,1723623051366,-580.34,0.00013698,2]
[334875621,1723623051377,-500.0,0.00013698,2]
[334875622,1723623051388,-580.34,0.00013698,2]
[334875623,1723623051399,-580.34,0.00013698,2]
[334875624,1723623051410,-580.34,0.00013698,2]
[334875625,1723623051421,-580.34,0.00013698,2]
[334875626,1723623051537,-500.0,0.00013698,2]
[334875627,1723623051549,-580.34,0.00013698,2]
[334875628,1723623051561,-580.34,0.00013698,2]
[334875629,1723623051571,-580.34,0.00013698,2]
[334875630,1723623051582,-580.34,0.00013698,2]
[334875631,1723623051593,-580.34,0.00013698,2]
[334875632,1723623051604,-580.34,0.00013698,2]
[334875633,1723623051618,-580.34,0.00013698,2]
[334875634,1723623051627,-580.34,0.00013698,2]
[334875635,1723623051637,-580.34,0.00013698,2]
[334875636,1723623051647,-580.34,0.00013698,2]
[334875637,1723623051656,-580.34,0.00013698,2]
[334875638,1723623051666,-580.34,0.00013698,2]
[334875639,1723623051677,-580.34,0.00013698,2]
[334875640,1723623051686,-580.34,0.00013698,2]
[334875641,1723623051696,-505.62093129,0.00013698,2]
[334875642,1723623051706,-580.34,0.00013698,2]
[334875643,1723623051716,-580.34,0.00013698,2]
[334875644,1723623051727,-306.13915602,0.00013698,2]
[334875645,1723623051736,-580.34,0.00013698,2]
[334875646,1723623051746,-580.40217577,0.00013698,2]
[334875647,1723623051756,-500.0,0.00013698,2]
[334875648,1723623051766,-500.0,0.00013698,2]
[334875649,1723623051777,-510.67158321,0.00013698,2]
[334875650,1723623051787,-696.19,0.00013698,2]
[334875651,1723623051796,-500.0,0.00013698,2]
[334875652,1723623051807,-510.95615251,0.00013698,2]
[334875653,1723623051818,-500.0,0.00013698,2]
[334875654,1723623051828,-530.44879324,0.00013698,2]
[334875655,1723623051838,-500.0,0.00013698,2]
[334875656,1723623051850,-500.0,0.00013698,2]
[334875657,1723623051861,-500.0,0.00013698,2]
[334875658,1723623051872,-500.0,0.00013698,2]
[334875659,1723623051882,-500.0,0.00013698,2]
[334875660,1723623051891,-500.0,0.00013698,2]
[334875661,1723623051900,-636.47,0.00013698,2]
[334875662,1723623051909,-500.0,0.00013698,2]
[334875663,1723623051919,-500.0,0.00013698,2]
[334875664,1723623051928,-535.59,0.00013698,2]
[334875665,1723623051937,-500.0,0.00013698,2]
[334875666,1723623051946,-500.0,0.00013698,2]
[334875667,1723623051956,-500.0,0.00013698,2]
[334875668,1723623051966,-500.0,0.00013698,2]
[334875669,1723623051976,-536.19115345,0.00013698,2]
[334875670,1723623051987,-512.52256073,0.00013698,2]
[334875671,1723623051997,-500.0,0.00013698,2]
[334875672,1723623052007,-500.0,0.00013698,2]
[334875673,1723623052018,-717.65,0.00013698,2]
[334875674,1723623052028,-200.96158757,0.00013698,2]
[334875675,1723623052039,-537.92454983,0.00013698,2]
[334875676,1723623052051,-500.0,0.00013698,2]
[334875677,1723623052060,-502.78817694,0.00013698,2]
[334875678,1723623052069,-500.0,0.00013698,2]
[334875679,1723623052080,-500.0,0.00013698,2]
[334875680,1723623052090,-517.38273853,0.00013698,2]
[334875681,1723623052100,-509.90635724,0.00013698,2]
[334875682,1723623052110,-506.28006412,0.00013698,2]
[334875683,1723623052120,-500.0,0.00013698,2]
[334875684,1723623052132,-513.52524821,0.00013698,2]
[334875685,1723623052142,-500.0,0.00013698,2]
[334875686,1723623052151,-500.0,0.00013698,2]
[334875687,1723623052160,-517.61836148,0.00013698,2]
[334875688,1723623052169,-500.0,0.00013698,2]
[334875689,1723623052178,-509.47864121,0.00013698,2]
[334875690,1723623052190,-500.0,0.00013698,2]
[334875691,1723623052199,-504.03758163,0.00013698,2]
[334875692,1723623052210,-510.08,0.00013698,2]
[334875693,1723623052220,-511.10893535,0.00013698,2]
[334875694,1723623052231,-500.0,0.00013698,2]
[334875695,1723623052242,-500.0,0.00013698,2]
[334875696,1723623052255,-500.0,0.00013698,2]
[334875697,1723623052266,-509.24019169,0.00013698,2]
[334875698,1723623052276,-500.0,0.00013698,2]
[334875699,1723623052288,-513.12527354,0.00013698,2]
[334875700,1723623052299,-1107.85,0.00013698,2]
[334875701,1723623052309,-500.0,0.00013698,2]
[334875702,1723623052320,-500.0,0.00013698,2]
[334875703,1723623052333,-500.0,0.00013698,2]
[334875704,1723623052346,-500.0,0.00013698,2]
[334875705,1723623052360,-538.69,0.00013698,2]
[334875706,1723623052370,-542.7884954,0.00013698,2]
[334875707,1723623052380,-900.74,0.00013698,2]
[334875708,1723623052391,-500.0,0.00013698,2]
[334875709,1723623052401,-500.0,0.00013698,2]
[334875710,1723623052411,-500.0,0.00013698,2]
[334875711,1723623052420,-2071.03,0.00013698,2]
[334875712,1723623052431,-500.0,0.00013698,2]
[334875713,1723623052441,-500.0,0.00013698,2]
[334875714,1723623052451,-500.0,0.00013698,2]
[334875715,1723623052460,-500.0,0.00013698,2]
[334875716,1723623052470,-500.0,0.00013698,2]
[334875717,1723623052481,-500.0,0.00013698,2]
[334875718,1723623052494,-500.0,0.00013698,2]
[334875719,1723623052504,-500.0,0.00013698,2]
[334875720,1723623052516,-500.0,0.00013698,2]
[334875721,1723623052525,-500.0,0.00013698,2]
[334875722,1723623052535,-500.0,0.00013698,2]
[334875723,1723623052545,-500.0,0.00013698,2]
[334875724,1723623052556,-757.44,0.00013698,2]
[334875725,1723623052569,-508.90760829,0.00013698,2]
[334875726,1723623052579,-500.0,0.00013698,2]
[334875727,1723623052590,-500.0,0.00013698,2]
[334875728,1723623052600,-500.0,0.00013698,2]
[334875729,1723623052612,-500.0,0.00013698,2]
[334875730,1723623052623,-504.67568801,0.00013698,2]
[334875731,1723623052636,-513.02773758,0.00013698,2]
[334875732,1723623052647,-504.88192393,0.00013698,2]
[334875733,1723623052658,-501.78796204,0.00013698,2]
[334875734,1723623052669,-523.96456071,0.00013698,2]
[334875735,1723623052680,-500.0,0.00013698,2]
[334875736,1723623052691,-622.85,0.00013698,2]
[334875737,1723623052701,-500.0,0.00013698,2]
[334875738,1723623052710,-500.0,0.00013698,2]
[334875739,1723623052719,-505.30497131,0.00013698,2]
[334875740,1723623052729,-500.0,0.00013698,2]
[334875741,1723623052739,-500.0,0.00013698,2]
[334875742,1723623052749,-500.0,0.00013698,2]
[334875743,1723623052759,-500.0,0.00013698,2]
[334875744,1723623052768,-500.0,0.00013698,2]
[334875745,1723623052778,-500.0,0.00013698,2]
[334875746,1723623052787,-500.0,0.00013698,2]
[334875747,1723623052797,-500.0,0.00013698,2]
[334875748,1723623052806,-500.0,0.00013698,2]
[334875749,1723623052815,-500.0,0.00013698,2]
[334875750,1723623052825,-500.0,0.00013698,2]
[334875751,1723623052835,-500.0,0.00013698,2]
[334875752,1723623052844,-565.98218611,0.00013698,2]
[334875753,1723623052853,-500.0,0.00013698,2]
[334875754,1723623052862,-500.0,0.00013698,2]
[334875755,1723623052872,-500.0,0.00013698,2]
[334875756,1723623052882,-620.04,0.00013698,2]
[334875757,1723623052892,-500.0,0.00013698,2]
[334875758,1723623052901,-500.0,0.00013698,2]
[334875759,1723623052910,-804.29,0.00013698,2]
[334875760,1723623052919,-500.0,0.00013698,2]
[334875761,1723623052928,-515.5835014,0.00013698,2]
[334875762,1723623052938,-519.28722596,0.00013698,2]
[334875763,1723623052947,-500.0,0.00013698,2]
[334875764,1723623052956,-506.94096023,0.00013698,2]
[334875765,1723623052966,-2279.43,0.00013698,2]
[334875766,1723623052975,-500.0,0.00013698,2]
[334875767,1723623052984,-500.0,0.00013698,2]
[334875768,1723623052994,-500.0,0.00013698,2]
[334875769,1723623053003,-500.0,0.00013698,2]
[334875770,1723623053013,-504.88100055,0.00013698,2]
[334875771,1723623053023,-500.0,0.00013698,2]
[334875772,1723623053034,-737.46,0.00013698,2]
[334875773,1723623053043,-502.53845574,0.00013698,2]
[334875774,1723623053054,-500.0,0.00013698,2]
[334875775,1723623053065,-500.0,0.00013698,2]
[334875776,1723623053075,-502.99600125,0.00013698,2]
[334875777,1723623053086,-982.96,0.00013698,2]
[334875778,1723623053095,-500.0,0.00013698,2]
[334875779,1723623053105,-500.0,0.00013698,2]
[334875780,1723623053114,-500.0,0.00013698,2]
[334875781,1723623053123,-504.81245363,0.00013698,2]
[334875782,1723623053133,-514.2159924,0.00013698,2]
[334875783,1723623053142,-500.0,0.00013698,2]
[334875784,1723623053151,-514.20365274,0.00013698,2]
[334875785,1723623053160,-500.0,0.00013698,2]
[334875786,1723623053169,-500.0,0.00013698,2]
[334875787,1723623053178,-14432.93,0.00013698,2]
[334875788,1723623053187,-500.0,0.00013698,2]
[334875789,1723623053198,-500.0,0.00013698,2]
[334875790,1723623053209,-500.0,0.00013698,2]
[334875791,1723623053218,-500.0,0.00013698,2]
[334875792,1723623053227,-500.0,0.00013698,2]
[334875793,1723623053239,-500.0,0.00013698,2]
[334875794,1723623053252,-500.0,0.00013698,2]
[334875795,1723623053264,-500.0,0.00013698,2]
[334875796,1723623053276,-834.27,0.00013698,2]
[334875797,1723623053287,-502.9116976,0.00013698,2]